bitfinex/quotes_SOLUSD_20211001
["timestamp","ask_amount","ask_price","bid_price","bid_amount"]
[1633110281443,0.02088,160.16,159.98,46.38555643]
[1633110281646,0.02088,160.2,160.01,65.61]
[1633110281846,0.02088,160.23,160.03,65.61]
[1633110282043,2.64088,160.26,160.04,2.62]
[1633110282246,0.02088,160.23,160.04,71.82363457]
[1633110282445,26.88384227,160.23,160.05,26.03191371]
[1633110282644,26.88384227,160.23,160.06,2.62]
[1633110282845,26.88384227,160.23,160.06,45.07895357]
[1633110283046,26.88384227,160.23,160.07,25.43807814]
[1633110283246,26.88384227,160.23,160.08,32.29179908]
[1633110283449,26.88384227,160.23,160.08,49.31267451]
[1633110283646,26.88384227,160.23,160.09,42.45895357]
[1633110283848,26.88384227,160.23,160.1,2.62]
[1633110284047,26.88384227,160.23,160.11,28.3114518]
[1633110284246,26.88384227,160.23,160.12,2.62]
[1633110284846,26.88384227,160.23,160.12,30.39023656]
[1633110285046,24.18538372,160.2,160.12,30.39023656]
[1633110285447,0.02088,160.19,160.12,30.39023656]
[1633110285647,0.02088,160.19,160.12,2.62]
[1633110286448,0.02088,160.19,160.08,2.62]
[1633110288050,0.02088,160.18,160.08,2.62]
[1633110288250,0.02088,160.18,160.0,74.5369]
[1633110288451,2.62,160.17,160.01,24.85793305]
[1633110288654,21.73492386,160.16,160.01,24.85793305]
[1633110288850,2.64088,160.15,160.01,2.62]
[1633110289051,0.02088,160.14,159.98,2.62]
[1633110289255,2.62,160.13,159.98,2.62]
[1633110289452,0.02088,160.12,159.98,2.62]
[1633110289653,2.64088,160.12,159.98,2.62]
[1633110289851,27.02479106,160.11,159.99,22.18243506]
[1633110290051,2.64088,160.1,159.99,22.18243506]
[1633110290250,0.02088,160.09,159.96,2.62]
[1633110290950,2.62,160.08,159.96,2.62]
[1633110291154,24.16980858,160.07,159.96,2.62]
[1633110291754,0.02088,160.06,159.96,2.62]
[1633110295158,2.64088,160.06,159.92,2.62]
[1633110295358,0.02088,160.05,159.92,2.62]
[1633110295758,2.62,160.04,159.92,2.62]
[1633110295956,0.02088,160.02,159.92,2.62]
[1633110296956,0.02088,160.02,159.92,2.12]
[1633110297957,2.62,160.01,159.89,24.49066594]
[1633110298157,0.02088,160.0,159.87,2.62]
[1633110298756,23.63135692,160.0,159.88,24.68940462]
[1633110299555,23.61047692,160.0,159.88,24.68940462]
[1633110299755,2.62,160.01,159.88,49.18007056]
[1633110300357,109.4354,160.05,159.89,2.62]
[1633110300655,26.62117939,160.04,159.9,24.51154594]
[1633110300856,26.62117939,160.04,159.92,25.06012428]
[1633110301059,26.62117939,160.04,159.92,27.68012428]
[1633110303457,2.62,160.07,159.92,27.68012428]
[1633110304459,27.99887491,160.06,159.92,52.17079022]
[1633110305061,50.81287491,160.06,159.92,27.11066594]
[1633110305261,2.62,160.05,159.92,27.11066594]
[1633110305461,2.62,160.05,159.92,2.62]
[1633110306262,2.62,160.05,159.92,27.91474414]
[1633110308264,2.62,160.05,159.92,52.40541008]
[1633110309565,81.0508,160.09,159.92,52.40541008]
[1633110309968,81.0508,160.09,159.93,0.02088]
[1633110310165,81.0508,160.09,159.94,2.62]
[1633110310566,25.95402141,160.08,159.95,25.31434045]
[1633110310765,25.95402141,160.08,159.95,27.93434045]
[1633110311667,2.62,160.09,159.95,27.93434045]
[1633110316776,2.62,160.09,159.95,52.42500639]
[1633110316976,522.88600611,160.11,159.95,52.42500639]
[1633110317374,522.88600611,160.11,159.95,66.66628504]
[1633110317573,522.88600611,160.11,159.96,4.47801188]
[1633110317774,522.88600611,160.11,159.98,27.55991399]
[1633110317974,522.88600611,160.11,159.99,2.62]
[1633110318175,522.88600611,160.11,159.99,27.11066594]
[1633110318775,522.88600611,160.11,160.0,24.49066594]
[1633110318975,522.88600611,160.11,160.01,2.62]
[1633110319577,29.53660637,160.15,160.02,24.88005997]
[1633110319778,74.5669,160.17,160.03,2.62]
[1633110319976,116.34114568,160.21,160.03,2.62]
[1633110320176,415.75968776,160.18,160.03,42.21861125]
[1633110320576,113.70026568,160.21,160.03,42.21861125]
[1633110320577,113.70026568,160.21,160.03,67.94443787]
[1633110320776,99.09853306,160.2,160.03,67.94443787]
[1633110321578,77.3166,160.2,160.03,67.94443787]
[1633110321779,0.90996568,160.21,160.03,67.94443787]
[1633110322582,24.55832158,160.2,160.05,65.61]
[1633110322781,24.55832158,160.2,160.07,26.82530682]
[1633110322980,24.55832158,160.2,160.08,2.62]
[1633110323582,0.90996568,160.21,160.08,2.62]
[1633110323781,0.90996568,160.21,160.08,52.980937]
[1633110324685,29.49375346,160.2,160.08,52.980937]
[1633110326182,0.90996568,160.21,160.08,52.980937]
[1633110327188,24.91857724,160.2,160.08,52.980937]
[1633110327589,0.90996568,160.21,160.08,135.14332676]
[1633110327788,0.90996568,160.21,160.11,65.61]
[1633110327988,0.90996568,160.21,160.13,2.57865402]
[1633110328187,0.90996568,160.21,160.16,65.61]
[1633110328388,0.90996568,160.21,160.17,2.62]
[1633110328588,0.90996568,160.21,160.18,23.86907901]
[1633110328788,0.90996568,160.21,160.19,2.62]
[1633110328989,0.90996568,160.21,160.19,74.40832677]
[1633110329191,0.02088,160.36,160.2,71.78832677]
[1633110329388,0.02088,160.37,160.21,2.62]
[1633110329589,0.02088,160.37,160.22,27.43812777]
[1633110329793,0.02088,160.39,160.23,68.23]
[1633110329993,97.77903988,160.41,160.23,68.23]
[1633110330189,97.77903988,160.41,160.24,73.75498308]
[1633110330390,97.77903988,160.41,160.26,23.86370559]
[1633110330590,97.77903988,160.41,160.27,2.62]
[1633110331190,0.02088,160.4,160.27,2.62]
[1633110332293,2.62,160.39,160.27,2.62]
[1633110332491,0.02088,160.38,160.23,2.62]
[1633110332689,2.62,160.39,160.23,2.62]
[1633110332690,2.64088,160.37,160.23,2.62]
[1633110332889,0.02088,160.33,160.23,2.62]
[1633110333089,16.10188,160.33,160.23,2.62]
[1633110333389,24.65060701,160.32,160.19,2.62]
[1633110333590,0.02088,160.31,160.19,2.62]
[1633110333789,2.64088,160.31,160.19,2.62]
[1633110333991,0.02088,160.3,160.19,2.62]
[1633110334291,22.50697688,160.29,160.19,2.62]
[1633110334492,0.02088,160.28,160.19,2.62]
[1633110337498,0.02088,160.28,160.13,28.36193774]
[1633110337697,2.64088,160.28,160.14,2.62]
[1633110337900,0.02088,160.27,160.14,2.62]
[1633110338097,0.02088,160.27,160.14,30.98193774]
[1633110338297,374.26980211,160.32,160.15,25.83961166]
[1633110338497,374.26980211,160.32,160.16,2.62]
[1633110338700,374.26980211,160.32,160.16,30.98193774]
[1633110338896,374.26980211,160.32,160.16,56.8215494]
[1633110339097,400.77488273,160.32,160.17,28.06800649]
[1633110339296,400.77488273,160.32,160.18,2.62]
[1633110339497,371.64980211,160.32,160.18,30.98193774]
[1633110339697,0.02088,160.33,160.19,25.83961166]
[1633110339896,112.6498,160.38,160.2,2.62]
[1633110340100,112.6498,160.38,160.2,47.55413269]
[1633110340296,112.6498,160.38,160.22,65.61]
[1633110340497,0.02088,160.42,160.23,32.75249517]
[1633110340498,24.94831941,160.4,160.23,32.75249517]
[1633110340697,24.94831941,160.4,160.24,68.23]
[1633110340900,24.94831941,160.4,160.24,139.00374435]
[1633110341297,24.94831941,160.4,160.26,27.48081162]
[1633110341498,24.94831941,160.4,160.27,2.62]
[1633110341698,24.94831941,160.4,160.27,19.19219495]
[1633110344101,0.02088,160.45,160.27,19.19219495]
[1633110344302,2.14088,160.46,160.27,47.55413269]
[1633110344904,79.7704,160.49,160.29,65.61]
[1633110345105,21.47416458,160.48,160.31,26.07717164]
[1633110345307,21.47416458,160.48,160.32,2.62]
[1633110346106,442.29030234,160.45,160.32,2.62]
[1633110346503,22.24964404,160.45,160.32,2.62]
[1633110349807,82.3904,160.49,160.32,2.62]
[1633110350410,0.02088,160.48,160.28,2.62]
[1633110350608,2.62,160.47,160.28,2.62]
[1633110350808,0.02088,160.46,160.28,2.62]
[1633110351009,2.62,160.45,160.28,2.62]
[1633110351208,29.02172325,160.44,160.28,2.62]
[1633110351409,2.64088,160.43,160.28,2.62]
[1633110351608,0.02088,160.42,160.28,2.62]
[1633110351808,2.62,160.41,160.28,2.62]
[1633110352009,2.64088,160.41,160.24,2.62]
[1633110352611,522.94243376,160.34,160.24,2.62]
[1633110353011,22.15199639,160.33,160.24,2.62]
[1633110353208,22.15199639,160.33,160.24,23.9601109]
[1633110353410,522.94243376,160.34,160.24,23.9601109]
[1633110353812,78.087,160.4,160.24,23.9601109]
[1633110354410,0.02088,160.39,160.24,2.62]
[1633110354612,2.62,160.38,160.21,2.62]
[1633110354809,2.64088,160.38,160.21,2.62]
[1633110355410,23.01547491,160.37,160.21,27.41100879]
[1633110355612,2.62,160.36,160.21,27.41100879]
[1633110357210,2.62,160.36,160.21,53.04655764]
[1633110358611,2.62,160.39,160.21,53.04655764]
[1633110358810,75.467,160.4,160.21,53.04655764]
[1633110358811,75.467,160.4,160.22,0.02088]
[1633110359012,119.9365,160.42,160.23,2.62]
[1633110359211,119.9365,160.42,160.23,28.25554885]
[1633110359612,28.40462682,160.41,160.24,22.15514616]
[1633110359811,28.40462682,160.41,160.25,2.62]
[1633110360617,459.37487659,160.41,160.25,2.62]
[1633110361416,459.37487659,160.41,160.25,2.64088]
[1633110362816,430.97024977,160.41,160.25,2.64088]
[1633110363617,430.97024977,160.41,160.26,0.02088]
[1633110363816,430.97024977,160.41,160.28,27.84003174]
[1633110364019,430.97024977,160.41,160.29,2.62]
[1633110365017,156.5947,160.47,160.3,0.02088]
[1633110365217,156.5947,160.47,160.31,2.62]
[1633110365418,156.5947,160.47,160.31,2.64088]
[1633110365617,518.19149771,160.47,160.31,2.64088]
[1633110365819,26.70355125,160.46,160.32,24.22887757]
[1633110366020,26.70355125,160.46,160.33,2.62]
[1633110367219,361.59679771,160.47,160.33,2.62]
[1633110367618,361.59679771,160.47,160.33,2.12]
[1633110368619,383.85180133,160.47,160.33,2.12]
[1633110370918,386.47180133,160.47,160.33,2.12]
[1633110371721,24.87500362,160.47,160.33,2.12]
[1633110373419,0.02088,160.46,160.33,2.12]
[1633110375221,4373.19376362,160.3,160.26,649.27167543]
[1633110375422,4373.19376362,160.3,160.27,2.62]
[1633110375622,4373.19376362,160.3,160.27,26.73321166]
[1633110376223,4396.81874681,160.3,160.27,26.73321166]
[1633110376421,4396.81874681,160.3,160.27,2.62]
[1633110377422,105.0,160.29,160.22,0.02088]
[1633110377622,4396.81874681,160.3,160.23,2.62]
[1633110377822,4396.81874681,160.3,160.24,2.62]
[1633110378024,4396.81874681,160.3,160.25,2.62]
[1633110378225,4396.81874681,160.3,160.26,2.62]
[1633110379231,4396.81874681,160.3,160.23,2.62]
[1633110380229,4373.19376362,160.3,160.23,2.62]
[1633110381642,4373.19376362,160.3,160.23,2.64088]
[1633110383042,4373.19376362,160.3,160.23,2.62]
[1633110384243,4373.19376362,160.3,160.24,5.57351155]
[1633110384445,4373.19376362,160.3,160.25,2.62]
[1633110385847,21.5188609,160.29,160.25,2.62]
[1633110386245,4373.19376362,160.3,160.25,2.62]
[1633110388249,4373.19376362,160.3,160.26,5.56189634]
[1633110388447,4373.19376362,160.3,160.27,2.62]
[1633110389449,4373.19376362,160.3,160.28,5.51688765]
[1633110389647,4373.19376362,160.3,160.29,2.62]
[1633110391549,4398.01739836,160.3,160.29,2.62]
[1633110392850,4398.01739836,160.3,160.22,43.97649268]
[1633110392851,3697.78437898,160.15,159.99,128.35415188]
[1633110393051,3697.78437898,160.15,160.14,2.49522998]
[1633110393052,3651.01987898,160.15,160.14,2.49522998]
[1633110393252,3558.60737898,160.15,160.14,88.82994003]
[1633110393653,3558.60737898,160.15,160.14,104.98086515]
[1633110394053,3511.83617898,160.15,160.14,104.98086515]
[1633110395155,3465.05597898,160.15,160.14,88.80906003]
[1633110395756,27.82468688,160.13,160.1,15.5882]
[1633110395957,27.82468688,160.13,160.11,2.62]
[1633110396355,3465.05597898,160.15,160.11,2.62]
[1633110397356,3418.25617898,160.15,160.11,2.62]
[1633110398360,3371.45867898,160.15,160.11,2.62]
[1633110399362,3324.66787898,160.15,160.11,2.62]
[1633110399760,3324.66787898,160.15,160.11,31.1026549]
[1633110400361,3277.88017898,160.15,160.11,31.1026549]
[1633110401462,3231.09137898,160.15,160.11,31.1026549]
[1633110401667,3231.09137898,160.15,160.11,47.26823679]
[1633110402367,3184.30677898,160.15,160.11,47.26823679]
[1633110403467,3137.51997898,160.15,160.11,47.26823679]
[1633110404165,3137.51997898,160.15,160.13,23.25928788]
[1633110404366,3137.51997898,160.15,160.14,2.62]
[1633110404569,3090.73917898,160.15,160.14,2.62]
[1633110405568,3043.95387898,160.15,160.14,2.62]
[1633110406570,2997.15907898,160.15,160.14,2.62]
[1633110409077,0.02088,160.2,160.14,2.62]
[1633110409274,0.02088,160.24,160.14,2.62]
[1633110409473,0.02088,160.24,160.15,18.37199809]
[1633110409675,0.02088,160.24,160.16,2.62]
[1633110410175,0.02088,160.24,160.16,27.24686984]
[1633110411176,0.02088,160.24,160.16,73.09041172]
[1633110412578,0.02088,160.24,160.16,97.21388184]
[1633110414178,0.02088,160.24,160.16,72.587012]
[1633110415182,0.02088,160.24,160.17,29.51458237]
[1633110415380,116.5394,160.25,160.17,32.13458237]
[1633110415579,116.5394,160.25,160.17,60.61723727]
[1633110415779,116.5394,160.25,160.17,102.10159437]
[1633110417288,116.0394,160.25,160.17,102.10159437]
[1633110420285,116.0394,160.25,160.17,98.10159437]
[1633110424386,116.0394,160.25,160.17,73.97812425]
[1633110424985,116.0394,160.25,160.17,96.76548326]
[1633110427287,116.0394,160.25,160.22,461.51264724]
[1633110427487,0.02088,160.33,160.23,24.9949663]
[1633110427687,0.02088,160.35,160.24,2.62]
[1633110427892,0.02088,160.36,160.24,2.62]
[1633110428086,77.7231,160.41,160.24,47.18674944]
[1633110428287,77.7231,160.41,160.26,27.50299637]
[1633110428487,77.7231,160.41,160.27,2.62]
[1633110428887,0.02088,160.4,160.27,2.62]
[1633110429691,0.02088,160.4,160.27,31.31670549]
[1633110429988,0.02088,160.4,160.27,48.96724389]
[1633110431791,75.1031,160.41,160.27,75.35813068]
[1633110432193,2.62,160.47,160.44,72.69010861]
[1633110432393,2.62,160.55,160.45,79.0]
[1633110432594,2.62,160.6,160.45,81.62]
[1633110432793,2.62,160.6,160.46,20.78510834]
[1633110432996,109.8848,160.63,160.49,65.61]
[1633110433194,109.3848,160.63,160.51,65.61]
[1633110433399,109.3848,160.63,160.52,2.62]
[1633110433596,109.3848,160.63,160.53,65.61]
[1633110433796,109.3848,160.63,160.54,2.62]
[1633110434196,109.3848,160.63,160.55,20.47466283]
[1633110434397,0.11405042,160.74,160.58,65.61]
[1633110434596,0.11405042,160.74,160.57,2.46408548]
[1633110434597,0.11405042,160.74,160.62,2.42673201]
[1633110434797,0.11405042,160.74,160.63,68.23]
[1633110434998,0.11405042,160.74,160.64,2.62]
[1633110435396,0.11405042,160.74,160.64,54.01082325]
[1633110435600,0.11405042,160.74,160.65,51.39082325]
[1633110435797,0.11405042,160.74,160.66,2.62]
[1633110435998,0.11405042,160.74,160.66,54.01082325]
[1633110436797,0.11405042,160.74,160.67,20.47466283]
[1633110436998,0.11405042,160.74,160.68,2.62]
[1633110437197,3.0,160.77,160.68,2.62]
[1633110437398,3.0,160.77,160.68,53.65122881]
[1633110437798,3.0,160.77,160.68,82.06722671]
[1633110438200,3.0,160.77,160.69,65.61]
[1633110438397,3.0,160.77,160.7,2.62]
[1633110438600,3.0,160.77,160.7,22.73506839]
[1633110438997,3.0,160.77,160.71,20.11506839]
[1633110439200,3.0,160.77,160.72,2.62]
[1633110439397,3.0,160.77,160.73,2.62]
[1633110440400,26.82462496,160.76,160.73,2.62]
[1633110440602,3.0,160.77,160.73,2.62]
[1633110442003,32.82117128,160.77,160.73,2.62]
[1633110442702,3.0,160.77,160.73,2.62]
[1633110445706,3.0,160.77,160.74,65.61]
[1633110445909,3.0,160.77,160.75,2.62]
[1633110449713,3.0,160.77,160.76,65.61]
[1633110449913,3.0,160.77,160.76,68.23]
[1633110453615,71.0,160.77,160.76,68.23]
[1633110453813,3.0,160.77,160.76,68.23]
[1633110454214,3.0,160.77,160.76,2.62]
[1633110455618,34.0,160.77,160.76,2.62]
[1633110456621,68.0,160.77,160.76,2.62]
[1633110456815,34.0,160.77,160.76,2.62]
[1633110457617,90.0,160.77,160.76,2.62]
[1633110457817,90.0,160.77,160.7,384.33591201]
[1633110457818,27.3926885,160.76,160.7,384.33591201]
[1633110458018,27.3926885,160.76,160.71,2.62]
[1633110460020,26.8926885,160.76,160.71,2.62]
[1633110461020,3.0,160.77,160.71,2.62]
[1633110462822,3.0,160.77,160.72,0.0422088]
[1633110463022,3.0,160.77,160.73,2.62]
[1633110463621,3.0,160.77,160.74,0.0422088]
[1633110463824,3.0,160.77,160.75,2.62]
[1633110464021,3.0,160.77,160.76,34.0422088]
[1633110464223,3.0,160.77,160.76,45.5764387]
[1633110464421,3.0,160.77,160.76,11.5764387]
[1633110464622,3.0,160.77,160.76,7.24576368]
[1633110464822,3.0,160.77,160.76,2.62]
[1633110465625,3.0,160.77,160.76,31.62]
[1633110466021,3.0,160.77,160.76,45.38233131]
[1633110466221,0.09005594,160.79,160.76,45.38233131]
[1633110466423,0.09005594,160.79,160.78,3.0]
[1633110466424,5.594e-05,160.79,160.78,3.0]
[1633110466622,4.1296201,160.95,160.78,5.6622088]
[1633110466623,1.5096201,160.95,160.78,5.6622088]
[1633110466822,26.23878566,160.94,160.79,0.0422088]
[1633110467022,26.23878566,160.94,160.78,5.62]
[1633110467023,26.23878566,160.94,160.81,0.0422088]
[1633110467222,25.73878566,160.94,160.82,7.21890744]
[1633110467422,1.5096201,160.95,160.82,7.26111624]
[1633110468022,1.5096201,160.95,160.82,7.21890744]
[1633110468421,23.48056704,160.94,160.82,7.21890744]
[1633110469222,1.5096201,160.95,160.82,2.62]
[1633110470224,28.91916343,160.94,160.82,2.62]
[1633110471426,1.5096201,160.95,160.82,2.62]
[1633110472227,1.5096201,160.95,160.83,0.0422088]
[1633110472428,1.5096201,160.95,160.84,2.62]
[1633110472627,1.5096201,160.95,160.84,2.6622088]
[1633110472827,1.5096201,160.95,160.9,0.0422088]
[1633110473029,1.5096201,160.95,160.91,2.62]
[1633110473228,1.5096201,160.95,160.92,0.0422088]
[1633110473428,1.5096201,160.95,160.93,2.62]
[1633110473628,1.5096201,160.95,160.94,0.0422088]
[1633110473828,1.5096201,160.95,160.94,2.62]
[1633110474229,1.5096201,160.95,160.9,2.62]
[1633110480651,23.2816051,160.94,160.9,2.62]
[1633110480850,1.5096201,160.95,160.9,2.62]
[1633110481450,3.10732708,160.91,160.9,2.62]
[1633110482251,3.10732708,160.91,160.9,36.62]
[1633110483050,3.10732708,160.91,160.9,2.62]
[1633110485251,3.10732708,160.91,160.9,72.62]
[1633110487452,1.5096201,160.95,160.91,0.99267292]
[1633110487653,1.5096201,160.95,160.92,2.62]
[1633110488054,0.2401,160.99,160.93,53.0]
[1633110488254,0.2401,160.99,160.94,2.62]
[1633110488855,29.27055364,160.99,160.94,2.62]
[1633110489457,105.0,160.98,160.9,2.62]
[1633110491862,0.2401,160.99,160.9,2.62]
[1633110494662,30.11078942,160.99,160.9,2.62]
[1633110494862,0.2401,160.99,160.9,2.62]
[1633110498469,0.2401,160.99,160.9,30.64822291]
[1633110499070,0.2401,160.99,160.9,2.62]
[1633110500070,0.2401,160.99,160.9,19.64571872]
[1633110500673,0.2401,160.99,160.9,47.09471941]
[1633110501474,0.2401,160.99,160.9,79.26627287]
[1633110502475,0.2401,160.99,160.91,8.10358495]
[1633110502674,0.2401,160.99,160.92,2.62]
[1633110502877,0.2401,160.99,160.92,81.75629849]
[1633110503075,0.31094244,161.05,160.94,105.0]
[1633110503277,0.10808364,161.12,160.93,71.03251776]
[1633110503278,0.10808364,161.12,160.99,65.61]
[1633110503478,120.99939889,161.2,161.12,16.70627759]
[1633110503677,119.2,161.2,161.13,2.62]
[1633110503880,118.7,161.2,161.13,2.62]
[1633110504476,53.10485813,161.28,161.13,68.23]
[1633110504677,53.10485813,161.28,161.2,14.87409563]
[1633110504877,2145.34461941,161.22,161.21,2.62]
[1633110505279,2118.3432134,161.22,161.21,2.62]
[1633110505481,2118.3432134,161.22,161.21,68.23]
[1633110505878,14.87409563,161.19,161.15,0.0022088]
[1633110506080,14.87409563,161.19,161.11,65.61]
[1633110506279,14.87409563,161.19,161.12,2.62]
[1633110506481,14.87409563,161.19,161.12,68.23]
[1633110507080,14.87409563,161.19,161.12,2.62]
[1633110507282,14.87409563,161.19,161.14,65.61]
[1633110507482,2043.3432134,161.22,161.18,40.0]
[1633110507688,2006.3432134,161.22,161.2,65.61]
[1633110507884,1903.4332134,161.22,161.21,2.62]
[1633110508085,1903.4332134,161.22,161.21,68.23]
[1633110508283,1903.4332134,161.22,161.21,68.25088]
[1633110508480,1846.4123334,161.22,161.21,68.25088]
[1633110508682,1846.4123334,161.22,161.21,68.23]
[1633110509882,1876.37427106,161.22,161.21,68.23]
[1633110510080,1846.4123334,161.22,161.21,68.23]
[1633110510683,1832.1023334,161.22,161.21,68.25088]
[1633110510882,1832.1023334,161.22,161.21,68.23]
[1633110511082,1714.9383334,161.22,161.21,68.23]
[1633110511280,1711.9383334,161.22,161.21,68.23]
[1633110512081,1665.4420334,161.22,161.21,68.23]
[1633110512482,1653.8953334,161.22,161.21,68.23]
[1633110512683,1587.2287334,161.22,161.21,68.23]
[1633110512889,1587.2287334,161.22,161.21,88.25212895]
[1633110513083,72.25212895,161.21,161.16,68.84879011]
[1633110513284,72.25212895,161.21,161.17,2.62]
[1633110513684,22.01219198,161.2,161.16,65.61]
[1633110513886,22.01219198,161.2,161.17,2.62]
[1633110514686,22.01219198,161.2,161.12,65.61]
[1633110514887,22.01219198,161.2,161.13,2.62]
[1633110515087,22.01219198,161.2,161.13,68.23]
[1633110515286,22.01219198,161.2,161.13,95.30295245]
[1633110515688,22.01219198,161.2,161.13,123.27267536]
[1633110515896,22.01219198,161.2,161.14,27.07295245]
[1633110516089,22.01219198,161.2,161.15,2.62]
[1633110516690,22.01219198,161.2,161.11,427.0473599]
[1633110516691,106.0,161.19,161.11,427.0473599]
[1633110516892,106.02088,161.19,161.11,427.0473599]
[1633110517291,106.0,161.19,161.11,490.5873599]
[1633110517692,106.0,161.19,161.11,427.0473599]
[1633110518496,1160.1813735,161.1,161.09,63.54]
[1633110518694,1113.6508735,161.1,161.09,63.54]
[1633110519096,1113.6508735,161.1,161.09,115.62156425]
[1633110519297,1113.6508735,161.1,161.09,117.73156425]
[1633110519692,1067.1219735,161.1,161.09,115.23156425]
[1633110520094,1065.8219735,161.1,161.09,115.23156425]
[1633110520693,1019.2937735,161.1,161.09,115.23156425]
[1633110521293,1019.2937735,161.1,161.09,54.19156425]
[1633110521693,972.7647735,161.1,161.09,54.19156425]
[1633110521895,947.5803735,161.1,161.09,117.73156425]
[1633110522093,723.7826735,161.1,161.09,117.73156425]
[1633110522301,723.7826735,161.1,161.09,133.2082855]
[1633110522496,723.7826735,161.1,161.09,185.8982855]
[1633110522696,677.2631735,161.1,161.09,185.8982855]
[1633110523700,630.7418735,161.1,161.09,185.8982855]
[1633110524299,71.02212895,161.21,161.09,185.8982855]
[1633110524697,71.02212895,161.21,161.09,237.3602855]
[1633110524898,71.02212895,161.21,161.11,52.69]
[1633110525097,71.02212895,161.21,161.12,65.65]
[1633110525300,71.02212895,161.21,161.12,139.73331115]
[1633110525497,71.02212895,161.21,161.13,48.45480315]
[1633110525700,24.52132895,161.21,161.14,65.65]
[1633110525898,24.52132895,161.21,161.14,139.73331115]
[1633110526097,24.52132895,161.21,161.15,43.06797713]
[1633110526300,24.52132895,161.21,161.16,65.65]
[1633110526497,24.52132895,161.21,161.16,108.71797713]
[1633110526697,24.52132895,161.21,161.17,17.43946913]
[1633110526898,72.2128,161.27,161.18,65.65]
[1633110527098,1.55052246,161.29,161.18,91.278508]
[1633110527300,1.55052246,161.29,161.19,43.06797713]
[1633110527499,1.55052246,161.29,161.2,65.65]
[1633110527698,1.55052246,161.29,161.2,108.71797713]
[1633110527900,1.55052246,161.29,161.21,43.06797713]
[1633110528098,1.55052246,161.29,161.22,2.11]
[1633110528301,1.55052246,161.29,161.22,107.77908824]
[1633110528499,1.55052246,161.29,161.23,42.12908824]
[1633110528705,1.55052246,161.29,161.24,65.65]
[1633110528903,1.55052246,161.29,161.24,533.54030845]
[1633110529101,1.55052246,161.29,161.25,42.12908824]
[1633110529301,1.55052246,161.29,161.26,2.11]
[1633110529503,1.55052246,161.29,161.26,44.23908824]
[1633110529902,1.55052246,161.29,161.27,42.12908824]
[1633110530101,1.55052246,161.29,161.27,44.23908824]
[1633110531201,1.55052246,161.29,161.24,425.76122021]
[1633110531405,409.28251176,161.25,161.24,492.53927953]
[1633110531604,409.28251176,161.25,161.24,494.64927953]
[1633110531802,404.98956743,161.25,161.24,515.18878041]
[1633110532003,404.98956743,161.25,161.24,523.56350011]
[1633110532204,404.98956743,161.25,161.24,531.06108958]
[1633110532403,358.51436743,161.25,161.24,464.28329677]
[1633110532603,358.51436743,161.25,161.24,467.52096675]
[1633110532804,358.51436743,161.25,161.24,460.02337728]
[1633110533003,358.51436743,161.25,161.24,433.0081471]
[1633110533403,312.02686743,161.25,161.24,433.0081471]
[1633110533802,312.02686743,161.25,161.24,435.39851473]
[1633110534202,312.02686743,161.25,161.24,433.0081471]
[1633110534404,312.02686743,161.25,161.24,7.24692689]
[1633110534602,23.7775602,161.19,161.14,52.69]
[1633110534803,53.07205314,161.18,161.15,9.69461992]
[1633110535002,53.07205314,161.18,161.15,0.11]
[1633110537208,0.02088,161.2,161.15,0.11]
[1633110537407,7.0,161.21,161.16,317.2591016]
[1633110537606,103.19915013,161.08,161.05,59.01531135]
[1633110537810,25.9389111,161.08,161.06,9.97331981]
[1633110538205,25.9389111,161.08,160.98,10.31638382]
[1633110538206,8.44700837,161.05,160.98,29.96148124]
[1633110538407,8.44700837,161.05,160.99,2.11]
[1633110539706,8.44700837,161.05,160.99,22.2304576]
[1633110539905,8.44700837,161.05,161.0,30.72742481]
[1633110540106,8.44700837,161.05,161.01,10.02173386]
[1633110540308,0.02088,161.15,161.03,28.80651167]
[1633110540506,0.02088,161.19,161.04,2.11]
[1633110540705,0.02088,161.19,161.04,65.65]
[1633110540906,0.02088,161.19,161.04,2.11]